bitfinex/quotes_BTCUSD_20240820
["timestamp","ask_amount","ask_price","bid_price","bid_amount"]
[1724172204931,0.003,59000.0,58999.0,0.35103089]
[1724172205135,0.003,59000.0,58999.0,0.45103089]
[1724172205455,0.003,59000.0,58999.0,0.48497089]
[1724172205909,0.002,59000.0,58999.0,0.47697089]
[1724172206530,0.003,59000.0,58999.0,0.48997089]
[1724172206941,0.001,59000.0,58999.0,0.48297089]
[1724172207086,0.002,59000.0,58999.0,0.49497089]
[1724172207510,0.001,59000.0,58999.0,0.48297089]
[1724172207978,0.001,59000.0,58999.0,0.48397089]
[1724172208288,0.001,59000.0,58999.0,0.44235016]
[1724172208495,0.001,59000.0,58999.0,0.45296104]
[1724172209535,0.001,59000.0,58999.0,0.43896104]
[1724172209737,0.001,59000.0,58999.0,0.41902104]
[1724172209953,0.000821,59002.0,58999.0,0.25842104]
[1724172210160,0.000821,59002.0,59001.0,0.3466]
[1724172210363,0.000821,59002.0,59001.0,0.4456]
[1724172210569,0.000821,59002.0,59001.0,0.1]
[1724172210982,0.000821,59002.0,59001.0,0.099]
[1724172211613,0.001821,59002.0,59001.0,0.014]
[1724172212016,0.001821,59002.0,59001.0,0.5072]
[1724172212227,0.002821,59002.0,59001.0,0.5162]
[1724172212671,0.002821,59002.0,59001.0,0.6273]
[1724172212878,0.002821,59002.0,59001.0,0.6503]
[1724172213079,0.003821,59002.0,59001.0,0.7593]
[1724172215514,0.003821,59002.0,59001.0,0.7363]
[1724172216414,0.003821,59002.0,59001.0,0.6252]
[1724172216613,0.003821,59002.0,59001.0,0.032]
[1724172216614,0.005821,59002.0,59001.0,0.032]
[1724172217022,0.004821,59002.0,59001.0,0.032]
[1724172217184,0.003821,59002.0,59001.0,0.032]
[1724172217641,0.003821,59002.0,59001.0,0.3696]
[1724172217844,0.003821,59002.0,59001.0,0.3466]
[1724172217845,0.000821,59002.0,59001.0,0.3466]
[1724172218212,0.000821,59002.0,59001.0,0.3546]
[1724172218843,0.000821,59002.0,59001.0,0.008]
[1724172219052,0.000821,59002.0,59001.0,0.004]
[1724172219252,0.032821,59002.0,59001.0,0.004]
[1724172219452,0.032821,59002.0,59001.0,0.01]
[1724172219453,0.033821,59002.0,59001.0,0.01]
[1724172219653,0.15365851,59002.0,59001.0,0.01]
[1724172219856,0.15365851,59002.0,59001.0,0.011]
[1724172220068,0.15365851,59002.0,59001.0,0.01]
[1724172220471,0.15365851,59002.0,59001.0,0.011]
[1724172221060,0.15365851,59002.0,59001.0,0.01]
[1724172221624,0.001,58996.0,58991.0,0.0046921]
[1724172222543,0.002,59001.0,58994.0,0.3466]
[1724172222744,0.002,59001.0,58995.0,0.13978972]
[1724172222949,0.031821,59002.0,58995.0,0.13978972]
[1724172222950,0.000821,59002.0,58995.0,0.13978972]
[1724172223152,0.000821,59002.0,59001.0,0.1364]
[1724172223816,0.000821,59002.0,59001.0,0.1394]
[1724172224254,0.000821,59002.0,59001.0,0.1364]
[1724172224421,0.000821,59002.0,59001.0,0.1404]
[1724172224757,0.000821,59002.0,59001.0,0.1354]
[1724172225131,0.001821,59002.0,59001.0,0.1474]
[1724172226152,0.002821,59002.0,59001.0,0.1594]
[1724172227078,0.002821,59002.0,59001.0,0.28164]
[1724172227427,0.002821,59002.0,59001.0,0.38502911]
[1724172228222,0.002821,59002.0,59001.0,0.36908911]
[1724172234857,0.002821,59002.0,59001.0,0.2594]
[1724172235057,0.002821,59002.0,59001.0,0.024]
[1724172235677,0.003821,59002.0,59001.0,0.024]
[1724172235866,0.004821,59002.0,59001.0,0.024]
[1724172236997,0.201,59000.0,58999.0,0.0009031]
[1724172237412,0.4925,59000.0,58999.0,0.0009031]
[1724172237617,0.65192044,59000.0,58999.0,0.0009031]
[1724172237823,0.67728766,59000.0,58999.0,0.0009031]
[1724172238025,0.52508431,59000.0,58999.0,0.0009031]
[1724172238437,0.6784802,59000.0,58999.0,0.0099031]
[1724172238639,0.52608431,59000.0,58999.0,0.0099031]
[1724172238847,0.6784802,59000.0,58999.0,0.0099031]
[1724172239051,0.52708431,59000.0,58999.0,0.0189031]
[1724172239255,0.52608431,59000.0,58999.0,0.0099031]
[1724172239670,0.52708431,59000.0,58999.0,0.0099031]
[1724172239875,0.52508431,59000.0,58999.0,0.0009031]
[1724172240336,0.52608431,59000.0,58999.0,0.0009031]
[1724172240540,0.52508431,59000.0,58999.0,0.0009031]
[1724172242116,0.65204339,59000.0,58999.0,0.0009031]
[1724172242588,0.52608431,59000.0,58999.0,0.0009031]
[1724172243048,0.52708431,59000.0,58999.0,0.0009031]
[1724172243815,0.52508431,59000.0,58999.0,0.0009031]
[1724172244011,0.50881704,59000.0,58999.0,0.0009031]
[1724172244866,0.38188431,59000.0,58999.0,0.0009031]
[1724172245447,0.48240871,59000.0,58999.0,0.0009031]
[1724172245712,0.48340871,59000.0,58999.0,0.0009031]
[1724172246129,0.28276035,59000.0,58999.0,0.0009031]
[1724172246303,0.28376035,59000.0,58999.0,0.0009031]
[1724172246921,0.233,59000.0,58999.0,0.1467031]
[1724172247126,0.232,59000.0,58999.0,0.1467031]
[1724172247469,0.233,59000.0,58999.0,0.1467031]
[1724172248208,0.233,59000.0,58999.0,0.0009031]
[1724172249064,0.34598066,59000.0,58999.0,0.0009031]
[1724172249291,0.34174192,59000.0,58999.0,0.0009031]
[1724172249500,0.30913938,59000.0,58999.0,0.0009031]
[1724172249712,0.233,59000.0,58999.0,0.0009031]
[1724172249924,0.28375545,59000.0,58999.0,0.0009031]
[1724172250560,0.233,59000.0,58999.0,0.0009031]
[1724172252888,0.91718976,59000.0,58999.0,0.0009031]
[1724172253131,0.91818976,59000.0,58999.0,0.0009031]
[1724172253541,0.91718976,59000.0,58999.0,0.0009031]
[1724172253744,0.91818976,59000.0,58999.0,0.0009031]
[1724172255674,0.64700376,59000.0,58999.0,0.0009031]
[1724172255884,0.91141076,59000.0,58999.0,0.0009031]
[1724172256089,1.038234,59000.0,58999.0,0.0009031]
[1724172256298,0.91141076,59000.0,58999.0,0.0009031]
[1724172256508,1.01286464,59000.0,58999.0,0.0009031]
[1724172256715,0.91141076,59000.0,58999.0,0.0009031]
[1724172256950,0.8788,59000.0,58999.0,0.0009031]
[1724172257176,0.8788,59000.0,58982.0,0.009031]
[1724172257177,1.51126,58983.0,58982.0,0.009031]
[1724172257393,0.8657458,58983.0,58982.0,0.009031]
[1724172257603,0.8697458,58983.0,58982.0,0.009031]
[1724172257831,0.99654465,58983.0,58982.0,0.009031]
[1724172258440,0.8697458,58983.0,58982.0,0.009031]
[1724172259078,0.33340004,58983.0,58982.0,0.009031]
[1724172259288,0.8816,58983.0,58982.0,0.009031]
[1724172259503,1.11664825,58983.0,58982.0,0.009031]
[1724172259703,1.08396798,58983.0,58982.0,0.009031]
[1724172259907,1.08296798,58983.0,58982.0,0.009031]
[1724172260112,1.08396798,58983.0,58982.0,0.009031]
[1724172260315,0.9826,58983.0,58982.0,0.009031]
[1724172260518,0.68266998,58983.0,58982.0,0.009031]
[1724172260721,0.632,58983.0,58982.0,0.009031]
[1724172260935,0.633,58983.0,58982.0,0.009031]
[1724172261147,0.632,58983.0,58982.0,0.009031]
[1724172262325,0.633,58983.0,58982.0,0.009031]
[1724172262735,0.632,58983.0,58982.0,0.009031]
[1724172263150,0.001,58983.0,58982.0,0.009031]
[1724172263358,0.001,58983.0,58982.0,0.282231]
[1724172263570,0.001,58983.0,58982.0,0.43595499]
[1724172263722,0.001,58983.0,58982.0,0.46656513]
[1724172264333,0.002,58999.0,58982.0,0.46656513]
[1724172264334,0.002,58999.0,58983.0,0.1352]
[1724172264566,0.002,58999.0,58991.0,0.115]
[1724172264765,0.002,58999.0,58992.0,0.1352]
[1724172265344,0.002,58995.0,58992.0,0.1352]
[1724172265795,0.002,58995.0,58992.0,0.1342]
[1724172266716,0.23,58997.0,58992.0,0.1342]
[1724172266917,0.002821,59001.0,58991.0,0.115]
[1724172267090,0.002821,59001.0,58992.0,0.004]
[1724172267293,0.000821,59001.0,58993.0,0.00338971]
[1724172267647,0.000821,59001.0,58993.0,0.023]
[1724172267852,0.000821,59001.0,58993.0,0.0372]
[1724172268103,0.000821,59001.0,58994.0,0.34998954]
[1724172268309,0.000821,59001.0,58995.0,0.023]
[1724172268714,0.000821,59001.0,58994.0,0.023]
[1724172268919,0.000821,59001.0,58995.0,0.1321]
[1724172269131,0.000821,59001.0,58996.0,0.023]
[1724172269352,0.000821,59001.0,58997.0,0.13548928]
[1724172269555,0.000821,59001.0,58998.0,0.023]
[1724172269556,0.001821,59001.0,58998.0,0.023]
[1724172269762,0.001821,59001.0,58999.0,0.1321]
[1724172270171,0.001821,59001.0,59000.0,0.13548929]
[1724172270374,0.000821,59001.0,59000.0,0.1321]
[1724172270787,0.001821,59001.0,59000.0,0.1321]
[1724172271806,0.001821,59001.0,59000.0,0.15219928]
[1724172272013,0.000821,59001.0,59000.0,0.262]
[1724172272830,0.000821,59001.0,59000.0,0.274]
[1724172273039,0.000821,59001.0,59000.0,0.285]
[1724172273244,0.000821,59001.0,59000.0,0.262]
[1724172273449,0.000821,59001.0,59000.0,0.274]
[1724172274770,0.001821,59001.0,59000.0,0.287]
[1724172274951,0.000821,59001.0,59000.0,0.274]
[1724172275150,0.000821,59001.0,59000.0,0.262]
[1724172275347,0.001821,59001.0,59000.0,0.29]
[1724172275549,0.002821,59001.0,59000.0,0.29]
[1724172275899,0.002821,59001.0,59000.0,0.276]
[1724172276082,0.003821,59001.0,59000.0,0.29]
[1724172276289,0.004821,59001.0,59000.0,0.29]
[1724172276493,0.003821,59001.0,59000.0,0.29]
[1724172276698,0.003821,59001.0,59000.0,0.29338916]
[1724172276899,0.003821,59001.0,59000.0,0.35101746]
[1724172277101,0.003821,59001.0,59000.0,0.45101746]
[1724172278901,0.003821,59001.0,59000.0,0.39338916]
[1724172279503,0.003821,59001.0,59000.0,0.47725482]
[1724172279919,0.003821,59001.0,59000.0,0.47625482]
[1724172281162,0.003821,59001.0,59000.0,0.48305082]
[1724172281366,0.002821,59001.0,59000.0,0.47005082]
[1724172281586,0.002821,59001.0,59000.0,0.46905082]
[1724172281819,0.002821,59001.0,59000.0,0.48405082]
[1724172282437,0.002821,59001.0,59000.0,0.48305082]
[1724172282572,0.002821,59001.0,59000.0,0.5914359]
[1724172283206,0.002821,59001.0,59000.0,0.49366166]
[1724172283413,0.002821,59001.0,59000.0,0.2741]
[1724172283616,0.002821,59001.0,59000.0,0.1741]
[1724172286780,0.002821,59001.0,59000.0,0.2081]
[1724172287515,0.002821,59001.0,59000.0,0.20048917]
[1724172287924,0.002821,59001.0,59000.0,0.30048917]
[1724172288168,0.002821,59001.0,59000.0,0.38675809]
[1724172288323,0.002821,59001.0,59000.0,0.42075809]
[1724172288527,0.002821,59001.0,59000.0,0.77885809]
[1724172289650,0.002821,59001.0,59000.0,0.69258917]
[1724172290503,0.002821,59001.0,59000.0,0.69358917]
[1724172290710,0.002821,59001.0,59000.0,0.69558917]
[1724172291065,0.002821,59001.0,59000.0,0.69258917]
[1724172292656,0.002821,59001.0,59000.0,0.69358917]
[1724172293086,0.002821,59001.0,59000.0,0.77408809]
[1724172293342,0.002821,59001.0,59000.0,0.69558917]
[1724172293938,0.002821,59001.0,59000.0,0.70607983]
[1724172294951,0.002821,59001.0,59000.0,0.70307983]
[1724172295152,0.002821,59001.0,59000.0,0.69969066]
[1724172295787,0.002821,59001.0,59000.0,0.70069066]
[1724172295934,0.002821,59001.0,59000.0,0.69969066]
[1724172296341,0.002821,59001.0,59000.0,0.18649066]
[1724172297932,0.002821,59001.0,59000.0,0.08649066]
[1724172298318,0.002821,59001.0,59000.0,0.08749066]
[1724172298535,0.002821,59001.0,59000.0,0.076]
[1724172298785,0.002821,59001.0,59000.0,0.077]
[1724172298983,0.002821,59001.0,59000.0,0.079]
[1724172299800,0.002821,59001.0,59000.0,0.042]
[1724172300003,0.138021,59001.0,59000.0,0.042]
[1724172300355,0.25194289,59001.0,59000.0,0.042]
[1724172300766,0.28455194,59001.0,59000.0,0.042]
[1724172301051,0.001,58994.0,58992.0,0.0009031]
[1724172301387,0.00751406,58993.0,58992.0,0.0009031]
[1724172301988,0.2536,58993.0,58992.0,0.0009031]
[1724172302398,0.26305214,58993.0,58992.0,0.0119031]
[1724172302603,0.2556,58993.0,58992.0,0.0119031]
[1724172302806,0.2556,58993.0,58992.0,0.0229031]
[1724172303405,0.1107,58993.0,58992.0,0.0229031]
[1724172303636,0.2,58996.0,58992.0,0.0229031]
[1724172303847,0.2,58996.0,58993.0,0.001]
[1724172304268,0.001,58994.0,58993.0,0.001]
[1724172304703,0.001,58994.0,58992.0,0.0139031]
[1724172304704,0.002,58994.0,58992.0,0.0009031]
[1724172304963,0.002,58994.0,58992.0,0.0089031]
[1724172305391,0.002,58994.0,58993.0,0.008]
[1724172305595,0.002,58994.0,58992.0,0.0089031]
[1724172306114,0.251,58997.0,58992.0,0.0019031]
[1724172306319,0.001,58993.0,58992.0,0.0019031]
[1724172306517,0.001821,59001.0,58992.0,0.0019031]
[1724172306518,0.16792752,59001.0,58994.0,0.003]
[1724172306722,0.16792752,59001.0,58996.0,0.001]
[1724172306931,0.117321,59001.0,58996.0,0.001]
[1724172307139,0.117321,59001.0,58996.0,0.003]
[1724172307359,0.115321,59001.0,58996.0,0.003]
[1724172307554,0.000821,59001.0,59000.0,0.001]
[1724172307754,0.000821,59001.0,58997.0,0.1619]
[1724172308374,0.000821,59001.0,58999.0,0.003]
[1724172308628,0.000821,59001.0,59000.0,0.36448935]
[1724172308840,0.000821,59001.0,59000.0,0.50808935]
[1724172309047,0.000821,59001.0,59000.0,0.63908935]
[1724172309893,0.000821,59001.0,59000.0,0.67308935]
[1724172310088,0.000821,59001.0,59000.0,0.75871769]
[1724172310291,0.000821,59001.0,59000.0,0.74732834]
[1724172310700,0.000821,59001.0,59000.0,0.6617]
[1724172310901,0.000821,59001.0,59000.0,0.6757]
[1724172311721,0.000821,59001.0,59000.0,0.6897]
[1724172312551,0.000821,59001.0,59000.0,0.162]
[1724172312763,0.000821,59001.0,59000.0,0.028]
[1724172312972,0.000821,59001.0,59000.0,0.029]
[1724172313407,0.000821,59001.0,59000.0,0.028]
[1724172314107,0.000821,59001.0,59000.0,0.029]
[1724172314351,0.000821,59001.0,59000.0,0.1737]
[1724172314830,0.000821,59001.0,59000.0,0.7393]
[1724172315069,0.000821,59001.0,59000.0,0.87146582]
[1724172315305,0.000821,59001.0,59000.0,0.87346582]
[1724172316965,0.000821,59001.0,59000.0,0.7983]
[1724172320884,0.000821,59001.0,59000.0,0.84310162]
[1724172323160,0.000821,59002.0,59001.0,0.32090162]
[1724172323393,0.000821,59002.0,59001.0,0.34829001]
[1724172323638,0.000821,59002.0,59001.0,0.44729001]
[1724172323882,0.000821,59002.0,59001.0,0.54217395]
[1724172324129,0.00082,59023.0,59022.0,0.003]
[1724172324380,0.00082,59023.0,59022.0,0.00638806]
[1724172324611,0.00082,59023.0,59022.0,0.06]
[1724172324832,0.00082,59023.0,59022.0,0.25052]
[1724172325107,0.00082,59023.0,59022.0,0.35390772]
[1724172326055,0.00082,59023.0,59022.0,0.36420825]
[1724172326299,0.00082,59023.0,59022.0,0.46982053]
[1724172326583,0.00082,59023.0,59022.0,0.49782053]
[1724172327074,0.49229154,59043.0,59041.0,0.3611]
[1724172327302,0.49229154,59043.0,59042.0,0.05152]
[1724172327574,0.1082,59045.0,59037.0,0.003]
[1724172328644,0.1153,59034.0,59022.0,0.09842]
[1724172328889,0.3173,59034.0,59026.0,0.001]
[1724172329132,0.3153,59034.0,59029.0,0.001]
[1724172329397,0.1153,59034.0,59033.0,0.001]
[1724172329877,0.1153,59034.0,59033.0,0.003]
[1724172330149,0.1153,59034.0,59032.0,0.04781]
[1724172330384,0.1153,59034.0,59032.0,0.04881]
[1724172330647,0.1173,59038.0,59037.0,0.001]
[1724172330911,0.03,59043.0,59037.0,0.001]
[1724172330912,0.032,59043.0,59037.0,0.003]
[1724172331184,0.1153,59042.0,59038.0,0.001]
[1724172331486,0.1153,59042.0,59038.0,0.003]
[1724172331688,0.1153,59042.0,59041.0,0.001]
[1724172331943,0.1121,59046.0,59041.0,0.001]
[1724172332185,0.1121,59046.0,59045.0,0.001]
[1724172332431,0.1121,59046.0,59045.0,0.003]
[1724172332682,0.1121,59046.0,59045.0,0.001]
[1724172333176,0.1121,59046.0,59045.0,0.003]
[1724172333482,0.1121,59046.0,59040.0,0.1]
[1724172333680,0.000821,59042.0,59040.0,0.1]
[1724172333923,0.002,59040.0,59038.0,0.004]
[1724172334198,0.1141,59040.0,59038.0,0.004]
[1724172334698,0.1141,59040.0,59035.0,0.001]
[1724172334931,0.1141,59040.0,59036.0,0.01474614]
[1724172336161,0.1141,59040.0,59038.0,0.008]
[1724172336635,0.1121,59040.0,59036.0,0.01474614]
[1724172336866,0.1121,59040.0,59036.0,0.02374614]
[1724172337104,0.000821,59042.0,59038.0,0.001]
[1724172337383,0.000821,59042.0,59038.0,0.016]
[1724172337639,0.000821,59042.0,59038.0,0.008]
[1724172337640,0.002,59040.0,59038.0,0.008]
[1724172337880,0.002,59040.0,59032.0,0.11046144]
[1724172338146,0.002,59040.0,59036.0,0.011]
[1724172338737,0.000821,59042.0,59036.0,0.011]
[1724172338738,0.002,59037.0,59036.0,0.011]
[1724172338912,0.002,59037.0,59031.0,0.4771]
[1724172338913,0.001,59035.0,59031.0,0.4771]
[1724172339166,0.001,59035.0,59029.0,0.034]
[1724172339402,0.2393,59037.0,59032.0,0.001]
[1724172339635,0.1136,59037.0,59036.0,0.001]
[1724172339834,0.1136,59037.0,59035.0,0.001]
[1724172340112,0.1136,59037.0,59036.0,0.01]
[1724172340604,0.1136,59037.0,59035.0,0.01296]
[1724172340851,0.1136,59037.0,59035.0,0.01396]
[1724172341089,0.002,59040.0,59035.0,0.001]
[1724172341320,0.002,59040.0,59038.0,0.001]
[1724172341580,0.002,59040.0,59038.0,0.003]
[1724172341832,0.001,59040.0,59038.0,0.003]
[1724172342070,0.1136,59041.0,59039.0,0.001]
[1724172342308,0.000821,59042.0,59041.0,0.001]
[1724172342550,0.000821,59042.0,59038.0,0.00638715]
[1724172343030,0.000821,59042.0,59039.0,0.001]
[1724172343282,0.000821,59042.0,59038.0,0.01682587]
[1724172343846,0.000821,59042.0,59041.0,0.008]
[1724172344058,0.000821,59042.0,59038.0,0.01682587]
[1724172344266,0.000821,59042.0,59039.0,0.001]
[1724172344481,0.000821,59042.0,59040.0,0.00338716]
[1724172344898,0.000821,59042.0,59041.0,0.1279]
[1724172345132,0.000821,59042.0,59041.0,0.14457259]
[1724172346165,0.000821,59042.0,59041.0,0.1269]
[1724172346470,0.000821,59042.0,59041.0,0.011]
[1724172346707,0.229821,59042.0,59041.0,0.011]
[1724172347175,0.229821,59042.0,59041.0,0.019]
[1724172347626,0.229821,59042.0,59041.0,0.011]
[1724172347854,0.431821,59042.0,59041.0,0.022]
[1724172348317,0.430821,59042.0,59041.0,0.022]
[1724172348546,0.308021,59042.0,59041.0,0.022]
[1724172348788,0.000821,59042.0,59041.0,0.023]
[1724172349032,0.000821,59042.0,59041.0,0.03982]
[1724172349443,0.000821,59042.0,59041.0,0.03682]
[1724172349641,0.000821,59042.0,59041.0,0.03782]
[1724172349844,0.000821,59042.0,59041.0,0.03982]
[1724172350146,0.000821,59042.0,59041.0,0.03682]
[1724172350499,0.000821,59042.0,59041.0,0.022]
[1724172351952,0.000821,59042.0,59041.0,0.023]
[1724172352156,0.000821,59042.0,59041.0,0.025]
[1724172352918,0.000821,59042.0,59041.0,0.156]
[1724172353103,0.000821,59042.0,59041.0,0.17193872]
[1724172353297,0.000821,59042.0,59041.0,0.27193872]
[1724172355981,0.000821,59042.0,59041.0,0.26893872]
[1724172356389,0.106621,59042.0,59041.0,0.022]
[1724172357030,0.308621,59042.0,59041.0,0.022]
[1724172357228,0.31285541,59042.0,59041.0,0.022]
[1724172358073,0.31285541,59042.0,59041.0,0.011]
[1724172358249,0.001,59037.0,59033.0,0.01021557]
[1724172358473,0.001,59037.0,59032.0,0.1]
[1724172358834,0.002,59037.0,59031.0,0.4801]
[1724172359033,0.106621,59042.0,59039.0,0.003]
[1724172359242,0.106621,59042.0,59038.0,0.003]
[1724172359243,0.000821,59042.0,59038.0,0.003]
[1724172359446,0.000821,59042.0,59032.0,0.65831763]
[1724172359447,0.000821,59042.0,59039.0,0.1242]
[1724172359917,0.000821,59042.0,59041.0,0.003]
[1724172360086,0.000821,59042.0,59039.0,0.1242]
[1724172360288,0.000821,59042.0,59039.0,0.1252]
[1724172360500,0.000821,59042.0,59041.0,0.001]
[1724172360673,0.000821,59042.0,59041.0,0.003]
[1724172361823,0.000821,59042.0,59041.0,0.016]
[1724172362255,0.000821,59042.0,59041.0,0.013]
[1724172362460,0.233421,59042.0,59041.0,0.013]
[1724172362687,0.234421,59042.0,59041.0,0.013]
[1724172362954,0.000821,59042.0,59041.0,0.013]
[1724172363369,0.03330711,59042.0,59041.0,0.025]
[1724172363577,0.002821,59042.0,59041.0,0.025]
[1724172363902,0.03530887,59042.0,59041.0,0.025]
[1724172364106,0.16000887,59042.0,59041.0,0.025]
[1724172364323,0.16424322,59042.0,59041.0,0.025]
[1724172364526,0.27064322,59042.0,59041.0,0.025]
[1724172365166,0.32135287,59042.0,59041.0,0.025]
[1724172365965,0.31711852,59042.0,59041.0,0.025]
[1724172366190,0.26640887,59042.0,59041.0,0.025]
[1724172366418,0.14170887,59042.0,59041.0,0.025]
[1724172366566,0.13970887,59042.0,59041.0,0.025]
[1724172366970,0.03330887,59042.0,59041.0,0.025]
[1724172367175,0.03330887,59042.0,59041.0,0.026]
[1724172367382,0.000821,59042.0,59041.0,0.03618746]
[1724172367849,0.000821,59042.0,59041.0,0.03518746]
[1724172369292,0.000821,59042.0,59041.0,0.025]
[1724172369729,0.000821,59042.0,59041.0,0.05261484]
[1724172369840,0.000821,59042.0,59041.0,0.05161484]
[1724172370245,0.000821,59042.0,59041.0,0.05261484]
[1724172370985,0.000821,59042.0,59041.0,0.05161484]
[1724172371395,0.000821,59042.0,59041.0,0.05261484]
[1724172372013,0.000821,59042.0,59041.0,0.026]
[1724172372993,0.000821,59042.0,59041.0,0.2459]
[1724172373354,0.000821,59042.0,59041.0,0.2689]
[1724172373556,0.000821,59042.0,59041.0,0.3709]
[1724172377397,0.000821,59042.0,59041.0,0.3579]
[1724172377607,0.000821,59042.0,59041.0,0.52187878]
[1724172377810,0.000821,59042.0,59041.0,0.53587878]
[1724172378021,0.000821,59042.0,59041.0,0.52387878]
[1724172378436,0.000821,59042.0,59041.0,0.53687878]
[1724172378640,0.000821,59042.0,59041.0,0.52387878]
[1724172379469,0.000821,59042.0,59041.0,0.53787878]
[1724172380897,0.000821,59042.0,59041.0,1.82350967]
[1724172381131,0.000821,59042.0,59041.0,1.89485009]
[1724172381337,0.000821,59042.0,59041.0,1.85750967]
[1724172382167,0.000821,59042.0,59041.0,1.82950967]
[1724172382612,0.000821,59042.0,59041.0,1.85750967]
[1724172382827,0.000821,59042.0,59041.0,1.84350967]
[1724172383069,0.000821,59042.0,59041.0,1.86684815]
[1724172383332,0.000821,59042.0,59041.0,1.89484815]
[1724172383558,0.000821,59042.0,59041.0,1.85750967]
[1724172383801,0.000821,59042.0,59041.0,1.84350967]
[1724172384052,0.000821,59042.0,59041.0,1.85750967]
[1724172384289,0.000821,59042.0,59041.0,1.89484714]
[1724172384553,0.000821,59042.0,59041.0,2.21500967]
[1724172385044,0.000821,59042.0,59041.0,1.91403089]
[1724172385288,0.000821,59042.0,59041.0,1.7895]
[1724172385935,0.000821,59042.0,59041.0,1.7755]
[1724172386392,0.000821,59042.0,59041.0,0.4195]
[1724172386624,0.000821,59042.0,59041.0,0.4065]
[1724172386844,0.000821,59042.0,59041.0,0.47241484]
[1724172387093,0.000821,59042.0,59041.0,0.47541484]
[1724172387334,0.000821,59042.0,59041.0,0.46141484]
[1724172387549,0.000821,59042.0,59041.0,0.56141484]
[1724172387974,0.000821,59042.0,59041.0,0.54741484]
[1724172388426,0.000821,59042.0,59041.0,0.58441484]
[1724172388604,0.000821,59042.0,59041.0,0.68441484]
[1724172388832,0.000821,59042.0,59041.0,0.69841484]
[1724172389039,0.000821,59042.0,59041.0,0.71241484]
[1724172389251,0.000821,59042.0,59041.0,0.69841484]
[1724172389478,0.000821,59042.0,59041.0,0.68441484]
[1724172389691,0.000821,59042.0,59041.0,0.71241484]
[1724172390738,0.000821,59042.0,59041.0,0.81401484]
[1724172390954,0.000821,59042.0,59041.0,0.71241484]
[1724172391380,0.000821,59042.0,59041.0,0.5225]
[1724172391594,0.103021,59042.0,59041.0,0.5225]
[1724172391818,0.103021,59042.0,59041.0,0.5195]
[1724172392076,0.103021,59042.0,59041.0,0.062]
[1724172392914,0.103021,59042.0,59041.0,0.048]
[1724172393129,0.103021,59042.0,59038.0,0.034]
[1724172393343,0.103021,59042.0,59041.0,0.028]
[1724172393344,0.217221,59042.0,59041.0,0.028]
[1724172393557,0.617221,59042.0,59041.0,0.028]
[1724172393777,0.77658031,59042.0,59041.0,0.028]
[1724172393993,0.64972748,59042.0,59041.0,0.028]
[1724172394214,0.77661719,59042.0,59041.0,0.028]
[1724172394892,0.64972748,59042.0,59041.0,0.014]
[1724172395111,0.77661719,59042.0,59041.0,0.014]
[1724172395315,0.71871363,59042.0,59041.0,0.014]
[1724172395520,0.002,59039.0,59038.0,0.014]
[1724172395729,0.05274045,59039.0,59038.0,0.014]
[1724172395947,0.002,59039.0,59038.0,0.014]
[1724172396154,0.001,59034.0,59026.0,0.01349489]
[1724172396363,0.001,59034.0,59026.0,0.08320658]
[1724172396571,0.001,59034.0,59026.0,0.17981875]
[1724172397419,0.002,59027.0,59026.0,0.1]
[1724172397629,0.002,59027.0,59023.0,0.034902]
[1724172398250,0.002,59026.0,59023.0,0.034902]
[1724172398472,0.26076975,59030.0,59023.0,0.000902]
[1724172398473,0.202,59024.0,59023.0,0.000902]
[1724172399293,0.202,59024.0,59023.0,0.012902]
[1724172399708,0.202,59024.0,59023.0,0.000902]
[1724172400125,0.202,59024.0,59023.0,0.001902]
[1724172400326,0.202,59024.0,59023.0,0.000902]
[1724172401473,0.202,59024.0,59023.0,0.004902]
[1724172402361,0.202,59024.0,59023.0,0.008902]
[1724172402972,0.20623577,59024.0,59023.0,0.008902]
[1724172403173,0.40803577,59024.0,59023.0,0.008902]
[1724172404268,0.45871159,59024.0,59023.0,0.004902]
[1724172404470,0.40803577,59024.0,59023.0,0.004902]
[1724172404675,0.40803577,59024.0,59023.0,0.000902]
[1724172405139,0.86532559,59024.0,58996.0,0.1065]
[1724172405359,0.0943,58999.0,58998.0,0.04803195]
[1724172405562,0.0943,58999.0,58998.0,0.01005398]
[1724172405990,0.0943,58999.0,58992.0,0.1414031]
[1724172406621,0.0943,58999.0,58998.0,0.012]
[1724172406838,0.0933,58999.0,58998.0,0.012]
[1724172407037,0.0923,58999.0,58993.0,0.101]
[1724172407247,0.0923,58999.0,58993.0,0.1354137]
[1724172407481,0.0923,58999.0,58993.0,0.1374137]
[1724172407889,0.002,59002.0,58997.0,0.001]
[1724172408093,0.001,58999.0,58998.0,0.012]
[1724172408503,0.0875,59005.0,58997.0,0.003]
[1724172408707,0.001,58999.0,58997.0,0.103]
[1724172409187,0.0875,59005.0,58997.0,0.103]
[1724172409432,0.1161,59008.0,59001.0,0.002]
[1724172409433,0.0862,59008.0,59001.0,0.002]
[1724172409674,0.0862,59008.0,58998.0,0.1497]
[1724172409675,0.0862,59008.0,59000.0,0.002]
[1724172409920,0.0862,59008.0,58999.0,0.099]
[1724172410868,0.0862,59008.0,58999.0,0.101]
[1724172411887,0.0862,59008.0,58999.0,0.103]
[1724172412094,0.0862,59008.0,58999.0,0.105]
[1724172412291,0.0862,59008.0,59001.0,0.002]